fUSD/lending_fUSD_20240109
["ID","MTS","AMOUNT","RATE_DAILY","PERIOD"]
[310968177,1704836041496,-500.0,0.00042,30]
[310968178,1704836041506,-648.93,0.00042,30]
[310968179,1704836041515,-994.23,0.00042,30]
[310968180,1704836041525,-500.0,0.00042,30]
[310968181,1704836041534,-500.0,0.00042,30]
[310968182,1704836041543,-3974.35,0.00042,30]
[310968183,1704836041552,-1208.62,0.00042,30]
[310968184,1704836041562,-575.24,0.00042,30]
[310968185,1704836041571,-500.0,0.00042,30]
[310968186,1704836041580,-500.0,0.00042,30]
[310968187,1704836041590,-840.42,0.00042,30]
[310968188,1704836041599,-442.62,0.00042,30]
[310968189,1704836041608,-500.0,0.00042,30]
[310968190,1704836041618,-20052.88,0.00042,30]
[310968191,1704836041627,-3280.13,0.00042,30]
[310968192,1704836041636,-1154.2,0.00042,30]
[310968193,1704836041646,-1336.18,0.00042,30]
[310968194,1704836041656,-500.0,0.00042,30]
[310968195,1704836041666,-3059.66,0.00042,30]
[310968196,1704836041675,-808.78,0.00042,30]
[310968197,1704836041685,-5796.52,0.00042,30]
[310968198,1704836041694,-595.48,0.00042,30]
[310968199,1704836041706,-772.79,0.00042,30]
[310968200,1704836041716,-1773.57,0.00042,30]
[310968201,1704836041725,-500.0,0.00042,30]
[310968202,1704836041735,-1436.73,0.00042,30]
[310968203,1704836041745,-1274.83,0.00042,30]
[310968204,1704836041755,-823.79,0.00042,30]
[310968205,1704836041764,-500.0,0.00042,30]
[310968206,1704836041774,-767.78,0.00042,30]
[310968207,1704836041783,-500.0,0.00042,30]
[310968208,1704836041792,-500.0,0.00042,30]
[310968209,1704836041803,-1764.13,0.00042,30]
[310968210,1704836041812,-924.78,0.00042,30]
[310968211,1704836041821,-1944.68,0.00042,30]
[310968212,1704836041831,-10402.25,0.00042,30]
[310968213,1704836041840,-4303.2,0.00042,30]
[310968214,1704836041849,-4288.57,0.00042,30]
[310968215,1704836041859,-7059.7,0.00042,30]
[310968216,1704836041868,-6327.7,0.00042,30]
[310968217,1704836041877,-1629.67,0.00042,30]
[310968218,1704836041887,-2082.36,0.00042,30]
[310968219,1704836041897,-699.1,0.00042,30]
[310968220,1704836041907,-500.0,0.00042,30]
[310968221,1704836041916,-2000.0,0.00042035,3]
[310968222,1704836041925,-187.3,0.00042039,60]
[310968223,1704836041935,-3000.0,0.00042054,120]
[310968224,1704836041944,-500.0,0.00042082,30]
[310968225,1704836041956,-500.0,0.00042082,30]
[310968226,1704836041965,-500.0,0.00042082,30]
[310968227,1704836041975,-519.07,0.00042082,30]
[310968228,1704836041984,-500.0,0.00042082,30]
[310968229,1704836041993,-500.0,0.00042082,30]
[310968230,1704836042003,-500.0,0.00042082,30]
[310968231,1704836042012,-1003.07,0.00042082,6]
[310968232,1704836042022,-500.0,0.00042082,30]
[310968233,1704836042031,-599.12,0.00042082,30]
[310968234,1704836042041,-500.0,0.00042082,30]
[310968235,1704836042051,-870.95,0.00042082,30]
[310968236,1704836042060,-774.16,0.00042082,30]
[310968237,1704836042070,-500.0,0.00042082,30]
[310968238,1704836042079,-500.0,0.00042082,2]
[310968239,1704836042088,-628.44,0.00042082,30]
[310968240,1704836042098,-500.0,0.00042082,30]
[310968241,1704836042107,-500.0,0.00042082,30]
[310968242,1704836042116,-583.93,0.00042082,30]
[310968243,1704836042125,-664.43,0.00042082,30]
[310968244,1704836042134,-642.11,0.00042082,30]
[310968245,1704836042217,-1006.44,0.00042082,30]
[310968246,1704836042227,-785.15,0.00042082,30]
[310968247,1704836042237,-500.0,0.00042082,30]
[310968248,1704836042246,-500.0,0.00042082,30]
[310968249,1704836042256,-500.0,0.00042082,30]
[310968250,1704836042265,-647.85,0.00042082,30]
[310968251,1704836042274,-1176.3,0.00042082,30]
[310968252,1704836042284,-892.9,0.00042082,30]
[310968253,1704836042293,-875.0,0.00042082,30]
[310968254,1704836042303,-500.0,0.00042082,30]
[310968255,1704836042312,-500.0,0.00042082,30]
[310968256,1704836042321,-924.33,0.00042082,30]
[310968257,1704836042330,-552.38,0.00042082,30]
[310968258,1704836042339,-1079.22,0.00042082,30]
[310968259,1704836042349,-1021.0,0.00042082,30]
[310968260,1704836042358,-500.0,0.00042082,30]
[310968261,1704836042367,-500.0,0.00042082,30]
[310968262,1704836042377,-500.0,0.00042082,30]
[310968263,1704836042386,-749.02,0.00042082,30]
[310968264,1704836042396,-199.7859832,0.00042082,30]
[310968265,1704836042405,-500.0,0.00042082,30]
[310968266,1704836042414,-507.33,0.00042082,30]
[310968267,1704836042424,-500.0,0.00042082,30]
[310968268,1704836042433,-500.0,0.00042082,30]
[310968269,1704836042442,-500.0,0.00042082,30]
[310968270,1704836042451,-556.06,0.00042082,30]
[310968271,1704836042463,-500.0,0.00042082,30]
[310968272,1704836042472,-500.0,0.00042082,30]
[310968273,1704836042482,-544.95,0.00042082,30]
[310968274,1704836042492,-470.03747562,0.00042082,30]
[310968275,1704836042501,-889.52,0.00042082,30]
[310968276,1704836042511,-643.58,0.00042082,30]
[310968277,1704836042521,-857.15,0.00042082,30]
[310968278,1704836042530,-549.07,0.00042082,30]
[310968279,1704836042539,-674.98,0.00042082,30]
[310968280,1704836042549,-500.0,0.00042082,30]
[310968281,1704836042558,-879.09,0.00042082,30]
[310968282,1704836042568,-500.0,0.00042082,30]
[310968283,1704836042577,-525.43,0.00042082,30]
[310968284,1704836042586,-740.92,0.00042082,30]
[310968285,1704836042595,-500.0,0.00042082,30]
[310968286,1704836042605,-341.42063514,0.00042082,30]
[310968287,1704836042614,-500.0,0.00042082,30]
[310968288,1704836042623,-894.54,0.00042082,30]
[310968289,1704836042632,-1210.61,0.00042082,30]
[310968290,1704836042642,-500.0,0.00042082,30]
[310968291,1704836042652,-1262.57,0.00042082,30]
[310968292,1704836042661,-767.71,0.00042082,30]
[310968293,1704836042670,-571.45,0.00042082,30]
[310968294,1704836042679,-500.0,0.00042082,30]
[310968295,1704836042689,-245.60420394,0.00042082,30]
[310968296,1704836042698,-1012.62,0.00042082,30]
[310968297,1704836042711,-568.08,0.00042082,30]
[310968298,1704836042721,-500.0,0.00042082,30]
[310968299,1704836042731,-1247.69,0.00042082,30]
[310968300,1704836042741,-500.0,0.00042082,30]
[310968301,1704836042750,-504.29,0.00042082,30]
[310968302,1704836042760,-744.29,0.00042082,30]
[310968303,1704836042769,-500.0,0.00042082,30]
[310968304,1704836042778,-1071.67,0.00042082,30]
[310968305,1704836042787,-1041.65,0.00042082,30]
[310968306,1704836042797,-597.48,0.00042082,30]
[310968307,1704836042806,-670.96,0.00042082,30]
[310968308,1704836042816,-344.49753655,0.00042082,30]
[310968309,1704836042825,-992.5,0.00042082,30]
[310968310,1704836042835,-500.0,0.00042082,30]
[310968311,1704836042844,-1379.24,0.00042082,30]
[310968312,1704836042853,-891.81,0.00042082,30]
[310968313,1704836042863,-500.0,0.00042082,30]
[310968314,1704836042872,-3464.95,0.00042082,30]
[310968315,1704836042882,-838.55,0.00042082,30]
[310968316,1704836042891,-660.81,0.00042082,30]
[310968317,1704836042900,-1525.96,0.00042082,30]
[310968318,1704836042909,-940.28,0.00042082,30]
[310968319,1704836042918,-797.09,0.00042082,30]
[310968320,1704836042928,-500.0,0.00042082,30]
[310968321,1704836042937,-1021.78,0.00042082,30]
[310968322,1704836042947,-500.0,0.00042082,30]
[310968323,1704836042959,-765.32,0.00042082,30]
[310968324,1704836042968,-624.2,0.00042082,30]
[310968325,1704836042977,-1106.38,0.00042082,30]
[310968326,1704836042986,-581.2,0.00042082,30]
[310968327,1704836042996,-1950.33,0.00042082,30]
[310968328,1704836043005,-779.64,0.00042082,30]
[310968329,1704836043014,-500.0,0.00042082,30]
[310968330,1704836043024,-557.57,0.00042082,30]
[310968331,1704836043033,-742.05,0.00042082,30]
[310968332,1704836043043,-578.59,0.00042082,30]
[310968333,1704836043052,-718.23,0.00042082,30]
[310968334,1704836043061,-500.0,0.00042082,30]
[310968335,1704836043071,-500.0,0.00042082,30]
[310968336,1704836043080,-1681.49,0.00042082,30]
[310968337,1704836043089,-667.7,0.00042082,30]
[310968338,1704836043098,-500.0,0.00042082,30]
[310968339,1704836043107,-500.0,0.00042082,30]
[310968340,1704836043117,-500.0,0.00042082,30]
[310968341,1704836043126,-803.72,0.00042082,30]
[310968342,1704836043135,-691.09,0.00042082,30]
[310968343,1704836043145,-820.84,0.00042082,30]
[310968344,1704836043154,-500.0,0.00042082,30]
[310968345,1704836043163,-500.0,0.00042082,7]
[310968346,1704836043172,-500.0,0.00042082,30]
[310968347,1704836043182,-500.0,0.00042082,30]
[310968348,1704836043191,-612.42,0.00042082,30]
[310968349,1704836043200,-500.0,0.00042082,30]
[310968350,1704836043214,-500.0,0.00042082,30]
[310968351,1704836043223,-500.0,0.00042082,30]
[310968352,1704836043232,-700.31,0.00042082,30]
[310968353,1704836043241,-1173.84,0.00042082,30]
[310968354,1704836043251,-890.72,0.00042082,30]
[310968355,1704836043260,-519.17,0.00042082,30]
[310968356,1704836043270,-681.49,0.00042082,30]
[310968357,1704836043280,-627.48,0.00042082,30]
[310968358,1704836043289,-1141.38,0.00042082,30]
[310968359,1704836043298,-596.45,0.00042082,30]
[310968360,1704836043307,-1148.32,0.00042082,30]
[310968361,1704836043316,-616.05,0.00042082,30]
[310968362,1704836043325,-1154.54,0.00042082,30]
[310968363,1704836043335,-500.0,0.00042082,30]
[310968364,1704836043349,-622.7,0.00042082,30]
[310968365,1704836043359,-1370.57,0.00042082,30]
[310968366,1704836043369,-724.45,0.00042082,30]
[310968367,1704836043380,-555.95,0.00042082,30]
[310968368,1704836043390,-677.52,0.00042082,30]
[310968369,1704836043400,-500.0,0.00042082,30]
[310968370,1704836043412,-500.0,0.00042082,30]
[310968371,1704836043423,-500.0,0.00042082,30]
[310968372,1704836043432,-500.0,0.00042082,30]
[310968373,1704836043442,-500.0,0.00042082,30]
[310968374,1704836043452,-854.7,0.00042082,30]
[310968375,1704836043464,-1132.67,0.00042082,30]
[310968376,1704836043504,-500.0,0.00042082,30]
[310968377,1704836043514,-950.79,0.00042082,30]
[310968378,1704836043524,-500.0,0.00042082,30]
[310968379,1704836043534,-500.0,0.00042082,30]
[310968380,1704836043544,-1393.23,0.00042082,30]
[310968381,1704836043554,-1054.09,0.00042082,30]
[310968382,1704836043565,-500.0,0.00042082,30]
[310968383,1704836043575,-500.0,0.00042082,30]
[310968384,1704836043585,-982.92,0.00042082,30]
[310968385,1704836043594,-500.0,0.00042082,30]
[310968386,1704836043604,-897.66,0.00042082,30]
[310968387,1704836043613,-612.78,0.00042082,30]
[310968388,1704836043623,-1038.74,0.00042082,30]
[310968389,1704836043633,-500.0,0.00042082,30]
[310968390,1704836043643,-500.0,0.00042082,30]
[310968391,1704836043653,-585.83,0.00042082,30]
[310968392,1704836043662,-1010.24,0.00042082,30]
[310968393,1704836043672,-625.2,0.00042082,30]
[310968394,1704836043681,-500.0,0.00042082,30]
[310968395,1704836043691,-1823.52,0.00042082,30]
[310968396,1704836043701,-1503.9,0.00042082,30]
[310968397,1704836043714,-975.74,0.00042082,30]
[310968398,1704836043724,-860.51,0.00042082,30]
[310968399,1704836043733,-693.44,0.00042082,30]
[310968400,1704836043743,-1252.33,0.00042082,30]
[310968401,1704836043753,-812.42,0.00042082,30]
[310968402,1704836043762,-500.0,0.00042082,30]
[310968403,1704836043772,-1661.63,0.00042082,30]
[310968404,1704836043781,-835.41,0.00042082,30]
[310968405,1704836043791,-929.16,0.00042082,30]
[310968406,1704836043801,-500.0,0.00042082,30]
[310968407,1704836043810,-996.89,0.00042082,4]
[310968408,1704836043820,-500.0,0.00042082,30]
[310968409,1704836043830,-500.0,0.00042082,30]
[310968410,1704836043839,-500.0,0.00042082,30]
[310968411,1704836043849,-1020.06,0.00042082,30]
[310968412,1704836043858,-955.18,0.00042082,30]
[310968413,1704836043868,-500.0,0.00042082,30]
[310968414,1704836043877,-1186.89,0.00042082,30]
[310968415,1704836043887,-500.0,0.00042082,2]
[310968416,1704836043897,-636.74,0.00042082,30]
[310968417,1704836043907,-768.37,0.00042082,30]
[310968418,1704836043917,-623.64,0.00042082,30]
[310968419,1704836043927,-500.0,0.00042082,30]
[310968420,1704836043938,-1030.22,0.00042082,30]
[310968421,1704836043947,-848.66,0.00042082,30]
[310968422,1704836043959,-500.0,0.00042082,30]
[310968423,1704836043969,-1351.73,0.00042082,30]
[310968424,1704836043979,-500.0,0.00042082,30]
[310968425,1704836043989,-1236.91,0.00042082,30]
[310968426,1704836044000,-555.34,0.00042082,30]
[310968427,1704836044009,-551.84,0.00042082,30]
[310968428,1704836044019,-500.0,0.00042082,30]
[310968429,1704836044029,-576.84,0.00042082,30]
[310968430,1704836044039,-1038.11,0.00042082,30]
[310968431,1704836044049,-500.0,0.00042082,30]
[310968432,1704836044059,-500.0,0.00042082,30]
[310968433,1704836044068,-1358.69,0.00042082,30]
[310968434,1704836044078,-1217.37,0.00042082,30]
[310968435,1704836044088,-500.0,0.00042082,30]
[310968436,1704836044098,-500.0,0.00042082,30]
[310968437,1704836044110,-500.0,0.00042082,30]
[310968438,1704836044120,-1307.04,0.00042082,30]
[310968439,1704836044129,-2306.18,0.00042082,30]
[310968440,1704836044139,-500.0,0.00042082,30]
[310968441,1704836044149,-1192.74,0.00042082,30]
[310968442,1704836044159,-619.97732753,0.00042082,30]
[310968443,1704836044169,-343.46278171,0.00042082,30]
[310968444,1704836044179,-611.23,0.00042082,30]
[310968445,1704836044188,-907.9,0.00042082,30]
[310968446,1704836044198,-996.68,0.00042082,30]
[310968447,1704836044210,-500.0,0.00042082,30]
[310968448,1704836044220,-500.0,0.00042082,30]
[310968449,1704836044230,-627.06,0.00042082,30]
[310968450,1704836044240,-500.0,0.00042082,30]
[310968451,1704836044250,-500.0,0.00042082,30]
[310968452,1704836044260,-503.95,0.00042082,30]
[310968453,1704836044270,-500.0,0.00042082,30]
[310968454,1704836044280,-500.0,0.00042082,30]
[310968455,1704836044290,-968.8,0.00042082,30]
[310968456,1704836044300,-1396.88,0.00042082,30]
[310968457,1704836044309,-635.82,0.00042082,30]
[310968458,1704836044319,-1404.61,0.00042082,30]
[310968459,1704836044329,-1231.44,0.00042082,30]
[310968460,1704836044339,-500.0,0.00042082,30]
[310968461,1704836044348,-554.78,0.00042082,30]
[310968462,1704836044359,-500.0,0.00042082,30]
[310968463,1704836044369,-1763.53,0.00042082,30]
[310968464,1704836044379,-500.0,0.00042082,30]
[310968465,1704836044389,-801.87,0.00042082,30]
[310968466,1704836044399,-500.0,0.00042082,30]
[310968467,1704836044409,-604.58,0.00042082,30]
[310968468,1704836044419,-1257.01,0.00042082,30]
[310968469,1704836044429,-1231.81,0.00042082,30]
[310968470,1704836044439,-2010.91,0.00042082,30]
[310968471,1704836044450,-1440.75,0.00042082,30]
[310968472,1704836044464,-896.14,0.00042082,30]
[310968473,1704836044474,-500.0,0.00042082,30]
[310968474,1704836044485,-1418.35,0.00042082,30]
[310968475,1704836044495,-632.29,0.00042082,30]
[310968476,1704836044506,-808.1,0.00042082,30]
[310968477,1704836044517,-921.45,0.00042082,30]
[310968478,1704836044527,-606.40094316,0.00042082,30]
[310968479,1704836044536,-170.27751777,0.00042082,30]
[310968480,1704836044547,-1186.03,0.00042082,30]
[310968481,1704836044557,-1164.7,0.00042082,30]
[310968482,1704836044568,-640.28,0.00042082,30]
[310968483,1704836044578,-1105.56,0.00042082,30]
[310968484,1704836044589,-602.96,0.00042082,30]
[310968485,1704836044598,-943.57,0.00042082,30]
[310968486,1704836044608,-500.0,0.00042082,30]
[310968487,1704836044618,-771.07,0.00042082,30]
[310968488,1704836044628,-1027.4,0.00042082,30]
[310968489,1704836044638,-500.0,0.00042082,30]
[310968490,1704836044648,-500.0,0.00042082,30]
[310968491,1704836044657,-1051.31,0.00042082,30]
[310968492,1704836044667,-500.0,0.00042082,30]
[310968493,1704836044677,-916.0,0.00042082,30]
[310968494,1704836044686,-500.0,0.00042082,5]
[310968495,1704836044696,-1267.33,0.00042082,30]
[310968496,1704836044709,-538.74,0.00042082,7]
[310968497,1704836044719,-701.87,0.00042082,30]
[310968498,1704836044729,-1238.29,0.00042082,30]
[310968499,1704836044738,-759.13,0.00042082,30]
[310968500,1704836044747,-606.97,0.00042082,30]
[310968501,1704836044756,-500.0,0.00042082,30]
[310968502,1704836044766,-1550.35,0.00042082,30]
[310968503,1704836044776,-500.0,0.00042082,30]
[310968504,1704836044786,-639.29,0.00042082,30]
[310968505,1704836044796,-836.7,0.00042082,30]
[310968506,1704836044805,-667.99,0.00042082,30]
[310968507,1704836044816,-500.0,0.00042082,30]
[310968508,1704836044825,-896.55,0.00042082,30]
[310968509,1704836044836,-500.0,0.00042082,30]
[310968510,1704836044845,-1272.22,0.00042082,30]
[310968511,1704836044855,-548.7,0.00042082,30]
[310968512,1704836044865,-814.27,0.00042082,30]
[310968513,1704836044874,-1819.38,0.00042082,30]
[310968514,1704836044884,-689.54,0.00042082,30]
[310968515,1704836044893,-515.4,0.00042082,30]
[310968516,1704836044903,-2289.47,0.00042082,30]
[310968517,1704836044914,-1865.7,0.00042082,30]
[310968518,1704836044924,-500.0,0.00042082,30]
[310968519,1704836044933,-1130.6,0.00042082,30]
[310968520,1704836044944,-500.0,0.00042082,30]
[310968521,1704836044953,-1020.46,0.00042082,30]
[310968522,1704836044966,-808.92,0.00042082,30]
[310968523,1704836044977,-765.7,0.00042082,30]
[310968524,1704836044987,-500.0,0.00042082,30]
[310968525,1704836044997,-806.27,0.00042082,30]
[310968526,1704836045007,-1306.79,0.00042082,30]
[310968527,1704836045017,-500.0,0.00042082,30]
[310968528,1704836045027,-500.0,0.00042082,30]
[310968529,1704836045038,-694.96,0.00042082,30]
[310968530,1704836045048,-1503.44,0.00042082,30]
[310968531,1704836045059,-500.0,0.00042082,30]
[310968532,1704836045069,-805.81,0.00042082,30]
[310968533,1704836045079,-500.0,0.00042082,30]
[310968534,1704836045089,-909.79,0.00042082,30]
[310968535,1704836045099,-1129.19,0.00042082,30]
[310968536,1704836045110,-500.0,0.00042082,30]
[310968537,1704836045121,-923.88,0.00042082,30]
[310968538,1704836045131,-611.47,0.00042082,30]
[310968539,1704836045141,-3103.78,0.00042082,30]
[310968540,1704836045152,-500.0,0.00042082,30]
[310968541,1704836045163,-500.0,0.00042082,30]
[310968542,1704836045174,-500.0,0.00042082,30]
[310968543,1704836045185,-500.0,0.00042082,30]
[310968544,1704836045195,-3251.04,0.00042082,30]
[310968545,1704836045207,-500.0,0.00042082,30]
[310968546,1704836045218,-740.01,0.00042082,30]
[310968547,1704836045227,-546.86,0.00042082,30]
[310968548,1704836045237,-1698.45,0.00042082,30]
[310968549,1704836045247,-500.0,0.00042082,30]
[310968550,1704836045256,-500.0,0.00042082,30]
[310968551,1704836045265,-500.0,0.00042082,30]
[310968552,1704836045276,-500.0,0.00042082,30]
[310968553,1704836045286,-1031.59,0.00042082,30]
[310968554,1704836045295,-739.45,0.00042082,30]
[310968555,1704836045305,-500.0,0.00042082,30]
[310968556,1704836045315,-1341.58,0.00042082,30]
[310968557,1704836045325,-500.0,0.00042082,30]
[310968558,1704836045335,-579.92,0.00042082,30]
[310968559,1704836045345,-962.12,0.00042082,30]
[310968560,1704836045355,-550.03,0.00042082,30]
[310968561,1704836045364,-12867.13,0.00042082,30]
[310968562,1704836045374,-897.67,0.00042082,30]
[310968563,1704836045384,-864.6,0.00042082,30]
[310968564,1704836045394,-550.26,0.00042082,30]
[310968565,1704836045404,-1997.12,0.00042082,30]
[310968566,1704836045415,-998.19,0.00042082,30]
[310968567,1704836045426,-1195.83,0.00042082,30]
[310968568,1704836045436,-500.0,0.00042082,30]
[310968569,1704836045446,-48899.91,0.00042082,30]
[310968570,1704836045457,-500.0,0.00042082,30]
[310968571,1704836045468,-654.66,0.00042082,30]
[310968572,1704836045478,-2469.86,0.00042082,30]
[310968573,1704836045487,-808.31,0.00042082,30]
[310968574,1704836045497,-673.33,0.00042082,30]
[310968575,1704836045506,-500.0,0.00042082,30]
[310968576,1704836045516,-626.68,0.00042082,30]
[310968577,1704836045525,-886.46,0.00042082,30]
[310968578,1704836045534,-2801.21,0.00042082,30]
[310968579,1704836045544,-2521.48,0.00042082,30]
[310968580,1704836045554,-1955.03,0.00042082,30]
[310968581,1704836045564,-767.91,0.00042082,30]
[310968582,1704836045574,-500.0,0.00042082,30]
[310968583,1704836045584,-2192.68,0.00042082,30]
[310968584,1704836045593,-1009.87,0.00042082,7]
[310968585,1704836045603,-991.57,0.00042082,30]
[310968586,1704836045612,-500.0,0.00042082,30]
[310968587,1704836045621,-500.0,0.00042082,30]
[310968588,1704836045631,-828.51,0.00042082,30]
[310968589,1704836045641,-500.0,0.00042082,30]
[310968590,1704836045651,-2108.88,0.00042082,30]
[310968591,1704836045661,-1931.34,0.00042082,30]
[310968592,1704836045670,-3347.6,0.00042082,30]
[310968593,1704836045680,-14790.64,0.00042082,30]
[310968594,1704836045689,-822.65,0.00042082,30]
[310968595,1704836045699,-1430.23,0.00042082,30]
[310968596,1704836045711,-5678.13,0.00042082,30]
[310968597,1704836045721,-610.39,0.00042082,30]
[310968598,1704836045731,-1617.86,0.00042082,30]
[310968599,1704836045741,-1087.77,0.00042082,30]
[310968600,1704836045751,-2799.84,0.00042082,30]
[310968601,1704836045761,-733.18,0.00042082,30]
[310968602,1704836045771,-500.0,0.00042082,30]
[310968603,1704836045780,-500.0,0.00042082,30]
[310968604,1704836045790,-1593.04,0.00042082,30]
[310968605,1704836045800,-500.0,0.00042082,30]
[310968606,1704836045809,-1520.5,0.00042082,30]
[310968607,1704836045819,-1804.05,0.00042082,30]
[310968608,1704836045828,-502.92,0.00042082,30]
[310968609,1704836045838,-539.66,0.00042082,30]
[310968610,1704836045848,-857.84,0.00042082,30]
[310968611,1704836045858,-1689.37,0.00042082,30]
[310968612,1704836045868,-1039.06,0.00042082,30]
[310968613,1704836045877,-4621.51,0.00042082,30]
[310968614,1704836045886,-500.0,0.00042082,30]
[310968615,1704836045895,-704.14,0.00042082,30]
[310968616,1704836045905,-4643.53,0.00042082,30]
[310968617,1704836045915,-500.0,0.00042082,30]
[310968618,1704836045924,-1420.75,0.00042082,30]
[310968619,1704836045934,-3385.64,0.00042082,30]
[310968620,1704836045943,-571.44,0.00042082,30]
[310968621,1704836045954,-500.0,0.00042082,30]
[310968622,1704836045965,-2540.83,0.00042082,30]
[310968623,1704836045974,-965.39,0.00042082,30]
[310968624,1704836045985,-500.0,0.00042082,30]
[310968625,1704836045995,-791.0,0.00042082,30]
[310968626,1704836046004,-2213.16,0.00042082,30]
[310968627,1704836046014,-500.0,0.00042082,30]
[310968628,1704836046023,-846.61,0.00042082,30]
[310968629,1704836046033,-2650.5,0.00042082,30]
[310968630,1704836046043,-786.95,0.00042082,30]
[310968631,1704836046053,-1349.94,0.00042082,30]
[310968632,1704836046062,-500.0,0.00042082,30]
[310968633,1704836046071,-500.0,0.00042082,30]
[310968634,1704836046081,-832.69,0.00042082,30]
[310968635,1704836046090,-2311.91,0.00042082,30]
[310968636,1704836046100,-1396.93,0.00042082,30]
[310968637,1704836046109,-500.0,0.00042082,30]
[310968638,1704836046118,-500.0,0.00042082,30]
[310968639,1704836046128,-14690.46,0.00042082,30]
[310968640,1704836046138,-2102.03,0.00042082,30]
[310968641,1704836046149,-500.0,0.00042082,30]
[310968642,1704836046159,-634.3240253,0.00042082,30]
[310968643,1704836046168,-3431.96,0.00042082,30]
[310968644,1704836046179,-2567.2,0.00042082,30]
[310968645,1704836046189,-6568.56,0.00042082,30]
[310968646,1704836046199,-534.6,0.00042082,30]
[310968647,1704836046211,-4057.32,0.00042082,30]
[310968648,1704836046221,-1036.03,0.00042082,30]
[310968649,1704836046231,-5465.29,0.00042082,30]
[310968650,1704836046240,-1046.98,0.00042082,30]
[310968651,1704836046250,-707.65,0.00042082,30]
[310968652,1704836046260,-3677.68,0.00042082,30]
[310968653,1704836046271,-558.03,0.00042082,30]
[310968654,1704836046281,-503.66,0.00042082,30]
[310968655,1704836046293,-2846.34,0.00042082,30]
[310968656,1704836046303,-796.49,0.00042082,30]
[310968657,1704836046313,-500.0,0.00042082,30]
[310968658,1704836046324,-2255.93,0.00042082,30]
[310968659,1704836046333,-2496.21,0.00042082,30]
[310968660,1704836046343,-2311.14,0.00042082,30]
[310968661,1704836046354,-3376.56,0.00042082,30]
[310968662,1704836046365,-692.76,0.00042082,30]
[310968663,1704836046375,-1358.66,0.00042082,30]
[310968664,1704836046385,-769.11,0.00042082,30]
[310968665,1704836046396,-1845.73,0.00042082,30]
[310968666,1704836046407,-500.0,0.00042082,30]
[310968667,1704836046418,-13108.96,0.00042082,30]
[310968668,1704836046427,-500.0,0.00042082,30]
[310968669,1704836046567,-9899.51,0.00042082,30]
[310968670,1704836046591,-10579.54,0.00042082,30]
[310968671,1704836046601,-1436.88,0.00042082,30]
[310968672,1704836046611,-1636.08,0.00042082,30]
[310968673,1704836046620,-500.0,0.00042082,30]
[310968674,1704836046630,-780.53,0.00042082,30]
[310968675,1704836046639,-1868.59,0.00042082,30]
[310968676,1704836046649,-583.25,0.00042082,30]